fUST/lending_fUST_20250202
["ID","MTS","AMOUNT","RATE_DAILY","PERIOD"]
[351256786,1738486239743,-2314.98,0.00016986,2]
[351256787,1738486239752,-151.0,0.00016986,2]
[351256788,1738486239761,-151.0,0.00016986,2]
[351256789,1738486239771,-1392.08,0.00016986,2]
[351256790,1738486239780,-500.0,0.00016986,2]
[351256791,1738486239789,-7269.4,0.00016986,2]
[351256792,1738486239799,-500.0,0.00016986,2]
[351256793,1738486239808,-500.0,0.00016986,2]
[351256794,1738486239817,-1669.41,0.00016986,2]
[351256795,1738486239826,-2574.09,0.00016986,2]
[351256796,1738486239835,-500.0,0.00016986,2]
[351256797,1738486239845,-485.96801797,0.00017003,2]
[351256798,1738486239854,-151.0,0.00017028,3]
[351256799,1738486239863,-485.96801797,0.00017038,2]
[351256800,1738486239872,-485.96801797,0.00017072,2]
[351256801,1738486239882,-151.0,0.000171,2]
[351256802,1738486239891,-153.0,0.00017101,2]
[351256803,1738486239900,-153.0,0.00017101,2]
[351256804,1738486239909,-153.0,0.00017101,2]
[351256805,1738486239920,-153.0,0.00017101,2]
[351256806,1738486239930,-153.0,0.00017101,2]
[351256807,1738486239939,-232.87,0.00017101,2]
[351256808,1738486239948,-164.0,0.00017106,2]
[351256809,1738486239958,-164.0,0.00017106,2]
[351256810,1738486239967,-166.31,0.00017106,2]
[351256811,1738486239977,-485.96801797,0.00017107,2]
[351256812,1738486239986,-280.60574313,0.00017122,2]
[351256813,1738486239995,-221.20386291,0.00017122,2]
[351256814,1738486240005,-151.0,0.00017123,2]
[351256815,1738486240014,-151.0,0.00017123,2]
[351256816,1738486240023,-500.0,0.00017123,2]
[351256817,1738486240032,-500.0,0.00017123,2]
[351256818,1738486240041,-151.0,0.00017123,2]
[351256819,1738486240051,-500.0,0.00017123,2]
[351256820,1738486240060,-151.0,0.00017123,2]
[351256821,1738486240070,-629.49144676,0.00017123,2]
[351256822,1738486240080,-151.0,0.00017123,2]
[351256823,1738486240089,-151.0,0.00017123,2]
[351256825,1738486240099,-151.0,0.00017123,2]
[351256827,1738486240108,-301.693565,0.00017123,2]
[351256829,1738486240117,-301.693565,0.00017123,2]
[351256830,1738486240127,-500.0,0.00017123,2]
[351256831,1738486240136,-164.8,0.00017123,2]
[351256832,1738486240146,-500.0,0.00017123,2]
[351256833,1738486240155,-500.0,0.00017123,2]
[351256834,1738486240165,-500.0,0.00017123,2]
[351256835,1738486240174,-500.0,0.00017123,2]
[351256836,1738486240183,-500.0,0.00017123,2]
[351256837,1738486240192,-500.0,0.00017123,2]
[351256839,1738486240202,-571.33,0.00017123,2]
[351256840,1738486240211,-500.0,0.00017123,2]
[351256841,1738486240220,-500.0,0.00017123,2]
[351256842,1738486240229,-500.0,0.00017123,2]
[351256843,1738486240239,-500.0,0.00017123,2]
[351256844,1738486240249,-163.069224,0.00017123,2]
[351256845,1738486240259,-450.114858,0.00017123,2]
[351256846,1738486240268,-500.0,0.00017123,2]
[351256847,1738486240280,-450.114858,0.00017123,2]
[351256848,1738486240290,-1057.332892,0.00017123,2]
[351256849,1738486240300,-1057.332892,0.00017123,2]
[351256850,1738486240309,-500.0,0.00017123,2]
[351256851,1738486240319,-234.936222,0.00017123,2]
[351256852,1738486240328,-500.0,0.00017123,2]
[351256853,1738486240338,-234.936222,0.00017123,2]
[351256854,1738486240347,-151.0,0.00017123,2]
[351256859,1738486240430,-151.0,0.00017123,2]
[351256860,1738486240440,-500.0,0.00017123,2]
[351256861,1738486240450,-500.0,0.00017123,2]
[351256862,1738486240459,-873.66,0.00017123,2]
[351256863,1738486240468,-193.538642,0.00017123,2]
[351256866,1738486240478,-193.538642,0.00017123,2]
[351256868,1738486240487,-196.03949853,0.00017123,2]
[351256870,1738486240497,-500.0,0.00017123,2]
[351256872,1738486240507,-18597.15,0.00017123,2]
[351256873,1738486240517,-151.0,0.00017123,2]
[351256874,1738486240527,-151.0,0.00017123,2]
[351256875,1738486240536,-283.07007,0.00017123,2]
[351256876,1738486240546,-500.0,0.00017123,2]
[351256877,1738486240555,-904.05,0.00017123,2]
[351256878,1738486240565,-500.0,0.00017123,2]
[351256880,1738486240574,-500.0,0.00017123,2]
[351256882,1738486240584,-2395.11,0.00017123,2]
[351256883,1738486240593,-500.0,0.00017123,2]
[351256884,1738486240602,-508.45,0.00017123,2]
[351256885,1738486240611,-278.921018,0.00017123,2]
[351256886,1738486240621,-2368.09,0.00017123,2]
[351256888,1738486240630,-897.53,0.00017123,2]
[351256889,1738486240640,-13052.07,0.00017123,2]
[351256890,1738486240649,-884.49,0.00017123,2]
[351256891,1738486240659,-500.0,0.00017123,2]
[351256892,1738486240668,-500.0,0.00017123,2]
[351256893,1738486240678,-500.0,0.00017123,2]
[351256894,1738486240687,-500.0,0.00017123,2]
[351256895,1738486240696,-714.15,0.00017123,2]
[351256896,1738486240705,-500.0,0.00017123,2]
[351256897,1738486240714,-500.0,0.00017123,2]
[351256898,1738486240724,-331.882712,0.00017123,2]
[351256900,1738486240734,-331.882712,0.00017123,2]
[351256901,1738486240743,-154.379691,0.00017123,2]
[351256902,1738486240753,-500.0,0.00017123,2]
[351256903,1738486240762,-555.52,0.00017123,2]
[351256904,1738486240772,-1184.59,0.00017123,2]
[351256905,1738486240781,-3677.01,0.00017123,2]
[351256906,1738486240791,-1654.48,0.00017123,2]
[351256907,1738486240800,-500.0,0.00017123,2]
[351256908,1738486240809,-500.0,0.00017123,2]
[351256909,1738486240819,-723.95,0.00017123,2]
[351256910,1738486240829,-500.0,0.00017123,2]
[351256911,1738486240838,-632.05,0.00017123,2]
[351256912,1738486240848,-500.0,0.00017123,2]
[351256913,1738486240857,-1751.15,0.00017123,2]
[351256914,1738486240867,-500.0,0.00017123,2]
[351256915,1738486240876,-2314.98,0.00017123,2]
[351256916,1738486240885,-151.0,0.00017123,2]
[351256917,1738486240895,-151.0,0.00017123,2]
[351256918,1738486240904,-1392.08,0.00017123,2]
[351256919,1738486240913,-500.0,0.00017123,2]
[351256920,1738486240923,-7269.4,0.00017123,2]
[351256921,1738486240932,-500.0,0.00017123,2]
[351256922,1738486240942,-500.0,0.00017123,2]
[351256923,1738486240951,-1669.41,0.00017123,2]
[351256924,1738486240962,-2574.09,0.00017123,2]
[351256925,1738486240972,-500.0,0.00017123,2]
[351256926,1738486240981,-153.0,0.00017124,2]
[351256927,1738486240990,-485.96801797,0.00017141,2]
[351256928,1738486241000,-485.96801797,0.00017176,2]
[351256929,1738486241010,-151.0,0.00017204,3]
[351256930,1738486241019,-485.96801797,0.0001721,2]
[351256931,1738486241029,-245.73809226,0.00017236,2]
[351256932,1738486241038,-161.31790051,0.00017243,2]
[351256933,1738486241047,-500.0,0.00017243,2]
[351256934,1738486241060,-501.06528167,0.00017243,2]
[351256935,1738486241070,-501.3825229,0.00017243,2]
[351256936,1738486241080,-151.53428566,0.00017243,2]
[351256937,1738486241089,-485.96801797,0.00017245,2]
[351256938,1738486241099,-500.0,0.00017253,2]
[351256939,1738486241108,-500.0,0.00017253,2]
[351256940,1738486241117,-523.53733128,0.00017253,2]
[351256941,1738486241127,-503.5305283,0.0001726,2]
[351256942,1738486241136,-500.0,0.0001726,2]
[351256944,1738486241145,-151.0,0.0001726,2]
[351256946,1738486241154,-151.0,0.0001726,2]
[351256947,1738486241163,-500.0,0.0001726,2]
[351256948,1738486241172,-500.0,0.0001726,2]
[351256949,1738486241181,-151.0,0.0001726,2]
[351256950,1738486241190,-500.0,0.0001726,2]
[351256951,1738486241199,-151.0,0.0001726,2]
[351256952,1738486241208,-151.0,0.0001726,2]
[351256953,1738486241216,-151.0,0.0001726,2]
[351256954,1738486241226,-151.0,0.0001726,2]
[351256955,1738486241235,-151.0,0.0001726,2]
[351256956,1738486241243,-301.693565,0.0001726,2]
[351256957,1738486241252,-301.693565,0.0001726,2]
[351256958,1738486241261,-461.31650369,0.0001726,2]
[351256959,1738486241270,-500.0,0.0001726,2]
[351256960,1738486241281,-446.29785688,0.0001726,2]
[351256961,1738486241292,-500.0,0.0001726,2]
[351256962,1738486241301,-500.0,0.0001726,2]
[351256963,1738486241310,-500.0,0.0001726,2]
[351256964,1738486241319,-278.09,0.0001726,2]
[351256965,1738486241327,-571.33,0.0001726,2]
[351256966,1738486241336,-214.25,0.0001726,2]
[351256967,1738486241346,-500.0,0.0001726,2]
[351256968,1738486241354,-500.0,0.0001726,2]
[351256969,1738486241366,-358.56813581,0.0001726,2]
[351256970,1738486241375,-500.0,0.0001726,2]
[351256971,1738486241383,-1057.332892,0.0001726,2]
[351256972,1738486241393,-1057.332892,0.0001726,2]
[351256973,1738486241401,-500.0,0.0001726,2]
[351256974,1738486241410,-500.0,0.0001726,2]
[351256975,1738486241419,-151.0,0.0001726,2]
[351256976,1738486241428,-500.0,0.0001726,2]
[351256977,1738486241436,-500.0,0.0001726,2]
[351256978,1738486241445,-873.66,0.0001726,2]
[351256979,1738486241455,-193.538642,0.0001726,2]
[351256980,1738486241463,-193.538642,0.0001726,2]
[351256981,1738486241472,-500.0,0.0001726,2]
[351256982,1738486241481,-18597.15,0.0001726,2]
[351256983,1738486241490,-500.0,0.0001726,2]
[351256984,1738486241505,-904.05,0.0001726,2]
[351256985,1738486241519,-500.0,0.0001726,2]
[351256986,1738486241528,-193.74557801,0.0001726,2]
[351256987,1738486241537,-2395.11,0.0001726,2]
[351256988,1738486241547,-500.0,0.0001726,2]
[351256989,1738486241556,-508.45,0.0001726,2]
[351256990,1738486241566,-2368.09,0.0001726,2]
[351256991,1738486241575,-897.53,0.0001726,2]
[351256992,1738486241584,-13052.07,0.0001726,2]
[351256993,1738486241593,-884.49,0.0001726,2]
[351256994,1738486241603,-500.0,0.0001726,2]
[351256995,1738486241613,-500.0,0.0001726,2]
[351256996,1738486241622,-500.0,0.0001726,2]
[351256997,1738486241632,-500.0,0.0001726,2]
[351256998,1738486241641,-714.15,0.0001726,2]
[351256999,1738486241651,-500.0,0.0001726,2]
[351257000,1738486241660,-544.66993034,0.0001726,2]
[351257001,1738486241671,-189.59115118,0.0001726,2]
[351257002,1738486241680,-555.52,0.0001726,2]
[351257003,1738486241690,-1184.59,0.0001726,2]
[351257004,1738486241700,-3677.01,0.0001726,2]
[351257005,1738486241709,-1654.48,0.0001726,2]
[351257006,1738486241719,-500.0,0.0001726,2]
[351257007,1738486241730,-500.0,0.0001726,2]
[351257008,1738486241739,-723.95,0.0001726,2]
[351257009,1738486241749,-500.0,0.0001726,2]
[351257010,1738486241758,-632.05,0.0001726,2]
[351257011,1738486241767,-500.0,0.0001726,2]
[351257012,1738486241777,-1751.15,0.0001726,2]
[351257013,1738486241787,-2314.98,0.0001726,2]
[351257014,1738486241796,-1392.08,0.0001726,2]
[351257015,1738486241807,-500.0,0.0001726,2]
[351257016,1738486241816,-7269.4,0.0001726,2]
[351257017,1738486241827,-500.0,0.0001726,2]
[351257018,1738486241837,-500.0,0.0001726,2]
[351257019,1738486241848,-1669.41,0.0001726,2]
[351257020,1738486241858,-2574.09,0.0001726,2]
[351257021,1738486241868,-500.0,0.0001726,2]
[351257022,1738486241878,-554.92144887,0.00017262,2]
[351257023,1738486241888,-500.0,0.00017262,2]
[351257024,1738486241897,-485.96801797,0.00017279,2]
[351257025,1738486241906,-256.56217126,0.00017283,2]
[351257026,1738486242023,-500.0,0.00017291,2]
[351257027,1738486242033,-151.0,0.000173,2]
[351257028,1738486242043,-151.0,0.000173,2]
[351257029,1738486242052,-485.96801797,0.00017314,2]
[351257030,1738486242061,-485.96801797,0.00017348,2]
[351257031,1738486242070,-151.0,0.00017381,3]
[351257032,1738486242080,-485.96801797,0.00017383,2]
[351257033,1738486242089,-151.0,0.00017397,2]
[351257034,1738486242098,-151.0,0.00017397,2]
[351257035,1738486242107,-335.160047,0.00017397,2]
[351257036,1738486242117,-335.160047,0.00017397,2]
[351257037,1738486242126,-151.0,0.00017397,2]
[351257038,1738486242135,-152.331516,0.00017397,2]
[351257039,1738486242144,-151.0,0.00017397,2]
[351257040,1738486242154,-628.87201804,0.00017397,2]
[351257041,1738486242163,-500.0,0.00017397,2]
[351257042,1738486242173,-151.0,0.00017397,2]
[351257043,1738486242183,-192.903123,0.00017397,2]
[351257044,1738486242192,-151.0,0.00017397,2]
[351257045,1738486242201,-151.0,0.00017397,2]
[351257046,1738486242210,-232.062615,0.00017397,2]
[351257047,1738486242219,-301.693565,0.00017397,2]
[351257048,1738486242230,-301.693565,0.00017397,2]
[351257049,1738486242239,-500.0,0.00017397,2]
[351257050,1738486242247,-500.0,0.00017397,2]
[351257051,1738486242257,-500.0,0.00017397,2]
[351257052,1738486242266,-500.0,0.00017397,2]
[351257053,1738486242276,-571.33,0.00017397,2]
[351257054,1738486242288,-500.0,0.00017397,2]
[351257055,1738486242297,-500.0,0.00017397,2]
[351257056,1738486242306,-450.114858,0.00017397,2]
[351257057,1738486242315,-500.0,0.00017397,2]
[351257058,1738486242326,-450.114858,0.00017397,2]
[351257059,1738486242335,-1057.332892,0.00017397,2]
[351257060,1738486242345,-1057.332892,0.00017397,2]
[351257061,1738486242355,-500.0,0.00017397,2]
[351257062,1738486242365,-234.936222,0.00017397,2]
[351257063,1738486242375,-500.0,0.00017397,2]
[351257064,1738486242385,-234.936222,0.00017397,2]
[351257065,1738486242393,-151.0,0.00017397,2]
[351257066,1738486242403,-500.0,0.00017397,2]
[351257067,1738486242413,-151.0,0.00017397,2]
[351257068,1738486242423,-500.0,0.00017397,2]
[351257069,1738486242433,-873.66,0.00017397,2]
[351257070,1738486242443,-193.538642,0.00017397,2]
[351257071,1738486242452,-193.538642,0.00017397,2]
[351257072,1738486242463,-500.0,0.00017397,2]
[351257073,1738486242474,-18597.15,0.00017397,2]
[351257074,1738486242485,-151.0,0.00017397,2]
[351257075,1738486242494,-151.0,0.00017397,2]
[351257076,1738486242504,-500.0,0.00017397,2]
[351257077,1738486242514,-904.05,0.00017397,2]
[351257078,1738486242523,-500.0,0.00017397,2]
[351257079,1738486242533,-2395.11,0.00017397,2]
[351257080,1738486242544,-500.0,0.00017397,2]
[351257081,1738486242554,-508.45,0.00017397,2]
[351257082,1738486242564,-2368.09,0.00017397,2]
[351257083,1738486242574,-897.53,0.00017397,2]
[351257084,1738486242584,-13052.07,0.00017397,2]
[351257085,1738486242595,-884.49,0.00017397,2]
[351257086,1738486242604,-500.0,0.00017397,2]
[351257087,1738486242614,-500.0,0.00017397,2]
[351257088,1738486242624,-500.0,0.00017397,2]
[351257089,1738486242634,-500.0,0.00017397,2]
[351257090,1738486242644,-714.15,0.00017397,2]
[351257091,1738486242654,-500.0,0.00017397,2]
[351257092,1738486242664,-331.882712,0.00017397,2]
[351257093,1738486242674,-331.882712,0.00017397,2]
[351257094,1738486242686,-555.52,0.00017397,2]
[351257095,1738486242696,-1184.59,0.00017397,2]
[351257096,1738486242707,-3677.01,0.00017397,2]
[351257097,1738486242717,-1654.48,0.00017397,2]
[351257098,1738486242736,-288.53370398,0.00017397,2]
[351257099,1738486242754,-500.0,0.00017397,2]
[351257100,1738486242771,-723.95,0.00017397,2]
[351257101,1738486242786,-500.0,0.00017397,2]
[351257102,1738486242802,-632.05,0.00017397,2]
[351257103,1738486242819,-500.0,0.00017397,2]
[351257104,1738486242834,-1751.15,0.00017397,2]
[351257105,1738486242851,-2314.98,0.00017397,2]
[351257106,1738486242866,-151.0,0.00017397,2]
[351257107,1738486242881,-151.0,0.00017397,2]
[351257108,1738486242896,-1392.08,0.00017397,2]
[351257109,1738486242912,-500.0,0.00017397,2]
[351257110,1738486242924,-7269.4,0.00017397,2]
[351257111,1738486242938,-500.0,0.00017397,2]
[351257112,1738486242951,-500.0,0.00017397,2]
[351257113,1738486242967,-1669.41,0.00017397,2]
[351257114,1738486242987,-2574.09,0.00017397,2]
[351257115,1738486243004,-500.0,0.00017397,2]
[351257116,1738486243018,-621.0,0.000174,2]
[351257117,1738486243030,-310.0,0.0001741,2]
[351257118,1738486243044,-485.96801797,0.00017417,2]
[351257119,1738486243062,-485.96801797,0.00017452,2]
[351257120,1738486243075,-1000.0,0.00017455,2]
[351257121,1738486243087,-1000.0,0.00017459,2]
[351257122,1738486243101,-1000.0,0.00017473,2]
[351257123,1738486243114,-1015.49549734,0.00017483,2]
[351257124,1738486243125,-485.96801797,0.00017486,2]
[351257125,1738486243137,-1000.0,0.0001749,2]
[351257126,1738486243150,-1000.0,0.0001751,2]
[351257127,1738486243163,-1000.0,0.00017517,2]
[351257128,1738486243176,-485.96801797,0.00017521,2]
[351257129,1738486243189,-1000.0,0.00017524,2]
[351257130,1738486243202,-1000.0,0.00017533,2]
[351257131,1738486243215,-151.0,0.00017534,2]
[351257134,1738486243230,-151.0,0.00017534,2]
[351257137,1738486243242,-298.04,0.00017534,2]
[351257139,1738486243255,-500.0,0.00017534,2]
[351257141,1738486243267,-500.0,0.00017534,2]
[351257142,1738486243282,-500.0,0.00017534,2]
[351257144,1738486243295,-500.0,0.00017534,2]
[351257148,1738486243308,-571.33,0.00017534,2]
[351257151,1738486243322,-500.0,0.00017534,2]
[351257154,1738486243334,-500.0,0.00017534,2]
[351257157,1738486243346,-450.114858,0.00017534,2]
[351257159,1738486243361,-500.0,0.00017534,2]
[351257160,1738486243375,-450.114858,0.00017534,2]
[351257161,1738486243388,-1057.332892,0.00017534,2]
[351257162,1738486243401,-1057.332892,0.00017534,2]
[351257163,1738486243414,-500.0,0.00017534,2]
[351257164,1738486243427,-234.936222,0.00017534,2]
[351257165,1738486243440,-500.0,0.00017534,2]
[351257166,1738486243453,-234.936222,0.00017534,2]
[351257167,1738486243466,-151.0,0.00017534,2]
[351257168,1738486243480,-500.0,0.00017534,2]
[351257169,1738486243494,-151.0,0.00017534,2]
[351257170,1738486243509,-262.4,0.00017534,2]
[351257171,1738486243523,-873.66,0.00017534,2]
[351257172,1738486243536,-500.0,0.00017534,2]
[351257173,1738486243549,-18597.15,0.00017534,2]
[351257174,1738486243563,-151.0,0.00017534,2]
[351257175,1738486243575,-151.0,0.00017534,2]
[351257176,1738486243588,-500.0,0.00017534,2]
[351257177,1738486243600,-904.05,0.00017534,2]
[351257178,1738486243615,-500.0,0.00017534,2]
[351257179,1738486243628,-2395.11,0.00017534,2]
[351257181,1738486243640,-500.0,0.00017534,2]
[351257183,1738486243654,-508.45,0.00017534,2]
[351257185,1738486243667,-2368.09,0.00017534,2]
[351257187,1738486243680,-897.53,0.00017534,2]
[351257189,1738486243694,-13052.07,0.00017534,2]
[351257190,1738486243704,-884.49,0.00017534,2]
[351257192,1738486243714,-500.0,0.00017534,2]
[351257194,1738486243841,-500.0,0.00017534,2]
[351257195,1738486243855,-500.0,0.00017534,2]
[351257196,1738486243865,-500.0,0.00017534,2]
[351257197,1738486243875,-714.15,0.00017534,2]
[351257198,1738486243884,-500.0,0.00017534,2]
[351257199,1738486243894,-331.882712,0.00017534,2]
[351257200,1738486243903,-331.882712,0.00017534,2]
[351257201,1738486243913,-555.52,0.00017534,2]
[351257202,1738486243922,-1184.59,0.00017534,2]
[351257203,1738486243932,-3677.01,0.00017534,2]
[351257204,1738486243942,-1654.48,0.00017534,2]
[351257205,1738486243952,-519.04386347,0.00017534,2]
[351257206,1738486243962,-723.95,0.00017534,2]
[351257207,1738486243972,-500.0,0.00017534,2]
[351257208,1738486243982,-632.05,0.00017534,2]
[351257209,1738486243992,-500.0,0.00017534,2]
[351257210,1738486244002,-1751.15,0.00017534,2]
[351257211,1738486244012,-2314.98,0.00017534,2]
[351257212,1738486244023,-151.0,0.00017534,2]
[351257213,1738486244033,-197.967534,0.00017534,2]
[351257214,1738486244042,-1392.08,0.00017534,2]
[351257215,1738486244052,-592.33451417,0.00017534,2]
[351257216,1738486244062,-7269.4,0.00017534,2]
[351257217,1738486244071,-500.0,0.00017534,2]
[351257218,1738486244081,-427.19,0.00017534,2]
[351257219,1738486244090,-1669.41,0.00017534,2]
[351257220,1738486244100,-2574.09,0.00017534,2]
[351257221,1738486244109,-500.0,0.00017534,2]
[351257222,1738486244119,-485.96801797,0.00017555,2]
[351257223,1738486244129,-151.0,0.00017557,3]
[351257224,1738486244139,-198.61583928,0.00017557,2]
[351257225,1738486244149,-1000.0,0.00017567,2]
[351257226,1738486244159,-1000.0,0.00017569,2]
[351257227,1738486244169,-1000.0,0.00017574,2]
[351257228,1738486244178,-1000.0,0.00017581,2]
[351257229,1738486244187,-1000.0,0.00017583,2]
[351257230,1738486244197,-1000.0,0.00017585,2]
[351257231,1738486244207,-485.96801797,0.0001759,2]
[351257232,1738486244215,-1000.0,0.0001759,2]
[351257233,1738486244224,-2276.71,0.000176,2]
[351257234,1738486244234,-20500.427346,0.000176,2]
[351257235,1738486244244,-151.0,0.000176,2]
[351257236,1738486244253,-301.693565,0.000176,2]
[351257237,1738486244264,-301.693565,0.000176,2]
[351257238,1738486244273,-193.538642,0.000176,2]
[351257239,1738486244287,-193.538642,0.000176,2]
[351257240,1738486244296,-153.0,0.00017602,2]
[351257241,1738486244306,-153.0,0.00017602,2]
[351257242,1738486244315,-153.0,0.00017602,2]
[351257243,1738486244325,-153.0,0.00017602,2]
[351257244,1738486244335,-153.0,0.00017602,2]
[351257245,1738486244344,-153.0,0.00017602,2]
[351257246,1738486244353,-153.0,0.00017602,2]
[351257247,1738486244364,-153.0,0.00017602,2]
[351257248,1738486244374,-153.0,0.00017602,2]
[351257249,1738486244383,-153.0,0.00017602,2]
[351257250,1738486244393,-153.0,0.00017602,2]
[351257251,1738486244402,-153.0,0.00017602,2]
[351257252,1738486244412,-153.0,0.00017602,2]
[351257253,1738486244421,-153.0,0.00017602,2]
[351257254,1738486244430,-153.0,0.00017602,2]
[351257255,1738486244440,-153.0,0.00017602,2]
[351257256,1738486244450,-153.0,0.00017602,2]
[351257257,1738486244459,-153.0,0.00017602,2]
[351257258,1738486244469,-232.0,0.00017602,2]
[351257259,1738486244481,-151.0,0.00017611,2]
[351257260,1738486244491,-151.0,0.00017611,2]
[351257261,1738486244501,-151.0,0.00017611,2]
[351257262,1738486244511,-150.0,0.00017611,2]
[351257263,1738486244520,-537.0,0.00017611,2]
[351257264,1738486244530,-2043.0,0.00017611,2]
[351257265,1738486244539,-2305.0,0.00017611,2]
[351257266,1738486244549,-150.0,0.00017611,2]
[351257267,1738486244559,-396.0,0.00017611,2]
[351257268,1738486244568,-250.0,0.00017611,2]
[351257269,1738486244577,-485.96801797,0.00017624,2]
[351257270,1738486244587,-1000.0,0.00017631,2]
[351257271,1738486244598,-1000.0,0.00017636,2]
[351257272,1738486244607,-162.0,0.0001764,2]
[351257273,1738486244617,-162.0,0.0001764,2]
[351257274,1738486244627,-162.0,0.0001764,2]
[351257275,1738486244637,-162.0,0.0001764,2]
[351257276,1738486244647,-162.18,0.0001764,2]
[351257277,1738486244657,-1000.0,0.00017642,2]
[351257278,1738486244667,-1000.0,0.0001765,2]
[351257279,1738486244677,-1000.0,0.00017652,2]
[351257280,1738486244687,-162.0,0.00017652,2]
[351257281,1738486244697,-162.0,0.00017652,2]
[351257282,1738486244707,-157.0,0.00017658,2]
[351257283,1738486244716,-485.96801797,0.00017659,2]
[351257284,1738486244727,-500.0,0.00017671,2]
[351257285,1738486244736,-500.0,0.00017671,2]
[351257286,1738486244746,-500.0,0.00017671,2]
[351257287,1738486244755,-500.0,0.00017671,2]
[351257288,1738486244766,-500.0,0.00017671,2]
[351257289,1738486244775,-589.506926,0.00017671,2]
[351257290,1738486244785,-151.0,0.00017671,2]
[351257291,1738486244795,-500.0,0.00017671,2]
[351257292,1738486244804,-500.0,0.00017671,2]
[351257293,1738486244813,-500.0,0.00017671,2]
[351257294,1738486244823,-500.0,0.00017671,2]
[351257295,1738486244832,-571.33,0.00017671,2]
[351257296,1738486244841,-500.0,0.00017671,2]
[351257297,1738486244850,-500.0,0.00017671,2]
[351257298,1738486244859,-450.114858,0.00017671,2]
[351257299,1738486244869,-500.0,0.00017671,2]
[351257300,1738486244879,-450.114858,0.00017671,2]
[351257301,1738486244888,-1057.332892,0.00017671,2]
[351257302,1738486244897,-1057.332892,0.00017671,2]
[351257303,1738486244906,-610.67,0.00017671,2]
[351257304,1738486244916,-234.936222,0.00017671,2]
[351257305,1738486244925,-500.0,0.00017671,2]
[351257306,1738486244935,-234.936222,0.00017671,2]
[351257307,1738486244944,-151.0,0.00017671,2]
[351257308,1738486244954,-500.0,0.00017671,2]
[351257309,1738486244963,-151.0,0.00017671,2]
[351257310,1738486244974,-873.66,0.00017671,2]
[351257311,1738486244983,-500.0,0.00017671,2]
[351257312,1738486244993,-18597.15,0.00017671,2]
[351257313,1738486245003,-1000.0,0.00017671,2]
[351257314,1738486245013,-151.0,0.00017671,2]
[351257315,1738486245023,-500.0,0.00017671,2]
[351257316,1738486245032,-904.05,0.00017671,2]
[351257317,1738486245042,-500.0,0.00017671,2]
[351257318,1738486245052,-2395.11,0.00017671,2]
[351257319,1738486245061,-500.0,0.00017671,2]
[351257320,1738486245071,-508.45,0.00017671,2]
[351257321,1738486245082,-2368.09,0.00017671,2]
[351257322,1738486245091,-897.53,0.00017671,2]
[351257323,1738486245101,-13052.07,0.00017671,2]
[351257324,1738486245110,-884.49,0.00017671,2]
[351257325,1738486245121,-500.0,0.00017671,2]
[351257326,1738486245131,-640.78668402,0.00017671,2]
[351257327,1738486245140,-500.0,0.00017671,2]
[351257328,1738486245150,-500.0,0.00017671,2]